[Event "Titled Tuesday Blitz August 16 Early 2022"]
[White "Tifferet, Shaked"]
[Black "Ziatdinov, Raset"]
[WhiteFideId "2811529"]
[BlackFideId "2015323"]
[WhiteElo "2083"]
[BlackElo "2220"]
[Result "0-1"]
[Round "03"]
[TimeControl "180+2"]
[Date "2022.08.18"]
[WhiteClock "0:00:00"]
[BlackClock "0:00:00"]

1. e4 {[%clk 0:00:00]}  e6 {[%clk 0:00:00]} 2. b3 {[%clk 0:00:00]}  d5 {[%clk 0:00:00]} 3. Bb2 {[%clk 0:00:00]}  dxe4 {[%clk 0:00:00]} 4. Nc3 {[%clk 0:00:00]}  Nf6 {[%clk 0:00:00]} 5. Qe2 {[%clk 0:00:00]}  Nc6 {[%clk 0:00:00]} 6. O-O-O {[%clk 0:00:00]}  a6 {[%clk 0:00:00]} 7. Nxe4 {[%clk 0:00:00]}  Be7 {[%clk 0:00:00]} 8. g4 {[%clk 0:00:00]}  h6 {[%clk 0:00:00]} 9. Bg2 {[%clk 0:00:00]}  Nd5 {[%clk 0:00:00]} 10. Nh3 {[%clk 0:00:00]}  b6 {[%clk 0:00:00]} 11. c4 {[%clk 0:00:00]}  Ndb4 {[%clk 0:00:00]} 12. Kb1 {[%clk 0:00:00]}  Nd4 {[%clk 0:00:00]} 13. Qe3 {[%clk 0:00:00]}  Nbc2 {[%clk 0:00:00]} 14. Qd3 {[%clk 0:00:00]}  c5 {[%clk 0:00:00]} 15. Nxc5 {[%clk 0:00:00]}  Rb8 {[%clk 0:00:00]} 16. Ne4 {[%clk 0:00:00]}  Bb7 {[%clk 0:00:00]} 17. Rc1 {[%clk 0:00:00]}  Na3+ {[%clk 0:00:00]} 18. Ka1 {[%clk 0:00:00]}  Ndc2+ {[%clk 0:00:00]} 19. Qxc2 {[%clk 0:00:00]}  Nxc2+ {[%clk 0:00:00]} 20. Rxc2 {[%clk 0:00:00]}  Qd3 {[%clk 0:00:00]} 21. Rc3 {[%clk 0:00:00]}  Qd7 {[%clk 0:00:00]} 22. Nf4 {[%clk 0:00:00]}  O-O {[%clk 0:00:00]} 23. h4 {[%clk 0:00:00]}  Qc8 {[%clk 0:00:00]} 24. g5 {[%clk 0:00:00]}  Bxe4 {[%clk 0:00:00]} 25. Bxe4 {[%clk 0:00:00]}  Bd6 {[%clk 0:00:00]} 26. Nh5 {[%clk 0:00:00]}  Be5 {[%clk 0:00:00]} 27. gxh6 {[%clk 0:00:00]}  g6 {[%clk 0:00:00]} 28. f4 {[%clk 0:00:00]}  Bxc3 {[%clk 0:00:00]} 29. Bxc3 {[%clk 0:00:00]}  f5 {[%clk 0:00:00]} 30. Rg1 {[%clk 0:00:00]}  fxe4 {[%clk 0:00:00]} 31. Rxg6+ {[%clk 0:00:00]}  Kh7 {[%clk 0:00:00]} 32. Rg7+ {[%clk 0:00:00]}  Kxh6 {[%clk 0:00:00]} 33. Rg5 {[%clk 0:00:00]}  Qd7 {[%clk 0:00:00]} 34. Ng3 {[%clk 0:00:00]}  Rxf4 {[%clk 0:00:00]} 35. Be5 {[%clk 0:00:00]}  Rbf8 {[%clk 0:00:00]} 36. Rh5+ {[%clk 0:00:00]}  Kg6 {[%clk 0:00:00]} 37. Rg5+ {[%clk 0:00:00]}  Kf7 {[%clk 0:00:00]} 38. Rg7+ {[%clk 0:00:00]}  Ke8 {[%clk 0:00:00]} 39. Rxd7 {[%clk 0:00:00]}  Kxd7 {[%clk 0:00:00]} 40. Bxf4 {[%clk 0:00:00]}  Rxf4 {[%clk 0:00:00]} 41. h5 {[%clk 0:00:00]}  Rg4 {[%clk 0:00:00]} 42. Ne2 {[%clk 0:00:00]}  Rh4 {[%clk 0:00:00]} 43. Ng3 {[%clk 0:00:00]}  Kd6 {[%clk 0:00:00]} 44. Kb2 {[%clk 0:00:00]}  Ke5 {[%clk 0:00:00]} 45. Kc3 {[%clk 0:00:00]}  Rh3 {[%clk 0:00:00]} 46. Kb4 {[%clk 0:00:00]}  Rxg3 {[%clk 0:00:00]} 47. c5 {[%clk 0:00:00]}  bxc5+ {[%clk 0:00:00]} 48. Ka5 {[%clk 0:00:00]}  Rd3 {[%clk 0:00:00]} 49. Kxa6 {[%clk 0:00:00]}  Rxd2 {[%clk 0:00:00]} 50. a4 {[%clk 0:00:00]}  Rb2 {[%clk 0:00:00]} 51. Kb5 {[%clk 0:00:00]}  Rxb3+ {[%clk 0:00:00]} 52. Kxc5 {[%clk 0:00:00]}  Rh3 {[%clk 0:00:00]} 53. a5 {[%clk 0:00:00]}  Rxh5 {[%clk 0:00:00]} 54. a6 {[%clk 0:00:00]}  Rh8 {[%clk 0:00:00]} 55. a7 {[%clk 0:00:00]}  Ra8 {[%clk 0:00:00]} 56. Kb6 {[%clk 0:00:00]}  Rxa7 {[%clk 0:00:00]} 57. Kxa7 {[%clk 0:00:00]}  e3 {[%clk 0:00:00]} 58. Kb6 {[%clk 0:00:00]}  e2 {[%clk 0:00:00]} 59. Kc5 {[%clk 0:00:00]}  e1=Q {[%clk 0:00:00]} 60. Kc4 {[%clk 0:00:00]}  Kf4 {[%clk 0:00:00]} 61. Kd3 {[%clk 0:00:00]}  e5 {[%clk 0:00:00]} 62. Kc2 {[%clk 0:00:00]}  e4 {[%clk 0:00:00]} 63. Kb2 {[%clk 0:00:00]}  e3 {[%clk 0:00:00]} 64. Kc2 {[%clk 0:00:00]}  e2 {[%clk 0:00:00]} 65. Kd3 {[%clk 0:00:00]}  Qd1+ {[%clk 0:00:00]} 66. Kc3 {[%clk 0:00:00]}  e1=Q+ {[%clk 0:00:00]} 67. Kb2 {[%clk 0:00:00]}  Qe3 {[%clk 0:00:00]} 68. Ka2 {[%clk 0:00:00]}  Qdd2+ {[%clk 0:00:00]} 0-1


[Site "https://www.chess.com"]

[Event "Titled Tuesday Blitz August 16 Early 2022"]
[White "Urbina Perez, Juan Antonio"]
[Black "Gomez Ledo, Roberto Carlos"]
[WhiteFideId "2217368"]
[BlackFideId "3507076"]
[WhiteElo "2192"]
[BlackElo "2379"]
[Result "0-1"]
[Round "03"]
[TimeControl "180+2"]
[Date "2022.08.18"]
[WhiteClock "0:00:00"]
[BlackClock "0:00:00"]

1. e4 {[%clk 0:00:00]}  e5 {[%clk 0:00:00]} 2. Nf3 {[%clk 0:00:00]}  Nc6 {[%clk 0:00:00]} 3. Bb5 {[%clk 0:00:00]}  a6 {[%clk 0:00:00]} 4. Ba4 {[%clk 0:00:00]}  Nf6 {[%clk 0:00:00]} 5. d3 {[%clk 0:00:00]}  d6 {[%clk 0:00:00]} 6. O-O {[%clk 0:00:00]}  g6 {[%clk 0:00:00]} 7. c3 {[%clk 0:00:00]}  Bg7 {[%clk 0:00:00]} 8. Nbd2 {[%clk 0:00:00]}  O-O {[%clk 0:00:00]} 9. Re1 {[%clk 0:00:00]}  Kh8 {[%clk 0:00:00]} 10. Nf1 {[%clk 0:00:00]}  Ng8 {[%clk 0:00:00]} 11. d4 {[%clk 0:00:00]}  Qe7 {[%clk 0:00:00]} 12. Bxc6 {[%clk 0:00:00]}  bxc6 {[%clk 0:00:00]} 13. dxe5 {[%clk 0:00:00]}  dxe5 {[%clk 0:00:00]} 14. Qa4 {[%clk 0:00:00]}  Bd7 {[%clk 0:00:00]} 15. Qc4 {[%clk 0:00:00]}  f5 {[%clk 0:00:00]} 16. Be3 {[%clk 0:00:00]}  Rfe8 {[%clk 0:00:00]} 17. exf5 {[%clk 0:00:00]}  gxf5 {[%clk 0:00:00]} 18. Bc5 {[%clk 0:00:00]}  Qf6 {[%clk 0:00:00]} 19. Ng3 {[%clk 0:00:00]}  Be6 {[%clk 0:00:00]} 20. Qa4 {[%clk 0:00:00]}  Bf7 {[%clk 0:00:00]} 21. Qh4 {[%clk 0:00:00]}  Qg6 {[%clk 0:00:00]} 22. Qg5 {[%clk 0:00:00]}  Nh6 {[%clk 0:00:00]} 23. Qxg6 {[%clk 0:00:00]}  hxg6 {[%clk 0:00:00]} 24. Ng5 {[%clk 0:00:00]}  Bg8 {[%clk 0:00:00]} 25. b3 {[%clk 0:00:00]}  Ng4 {[%clk 0:00:00]} 26. Rad1 {[%clk 0:00:00]}  Rad8 {[%clk 0:00:00]} 27. h3 {[%clk 0:00:00]}  Rxd1 {[%clk 0:00:00]} 28. Rxd1 {[%clk 0:00:00]}  Nf6 {[%clk 0:00:00]} 29. c4 {[%clk 0:00:00]}  Bh6 {[%clk 0:00:00]} 30. Nf3 {[%clk 0:00:00]}  Kg7 {[%clk 0:00:00]} 31. Re1 {[%clk 0:00:00]}  Nd7 {[%clk 0:00:00]} 32. Bb4 {[%clk 0:00:00]}  Kf7 {[%clk 0:00:00]} 33. Bc3 {[%clk 0:00:00]}  Bg7 {[%clk 0:00:00]} 34. Ng5+ {[%clk 0:00:00]}  Kf8 {[%clk 0:00:00]} 35. Nf1 {[%clk 0:00:00]}  Bf6 {[%clk 0:00:00]} 36. Nf3 {[%clk 0:00:00]}  c5 {[%clk 0:00:00]} 37. Ne3 {[%clk 0:00:00]}  c6 {[%clk 0:00:00]} 38. Nd1 {[%clk 0:00:00]}  Re6 {[%clk 0:00:00]} 39. Nb2 {[%clk 0:00:00]}  e4 {[%clk 0:00:00]} 40. Bxf6 {[%clk 0:00:00]}  Rxf6 {[%clk 0:00:00]} 41. Nd2 {[%clk 0:00:00]}  Rd6 {[%clk 0:00:00]} 42. Rd1 {[%clk 0:00:00]}  Ne5 {[%clk 0:00:00]} 43. Nb1 {[%clk 0:00:00]}  Rd4 {[%clk 0:00:00]} 44. Kf1 {[%clk 0:00:00]}  Ke7 {[%clk 0:00:00]} 45. Nc3 {[%clk 0:00:00]}  Be6 {[%clk 0:00:00]} 46. Nca4 {[%clk 0:00:00]}  Nd7 {[%clk 0:00:00]} 47. Ke2 {[%clk 0:00:00]}  g5 {[%clk 0:00:00]} 48. Rd2 {[%clk 0:00:00]}  f4 {[%clk 0:00:00]} 49. Nc3 {[%clk 0:00:00]}  Bf5 {[%clk 0:00:00]} 50. Nca4 {[%clk 0:00:00]}  Kd6 {[%clk 0:00:00]} 51. Nd1 {[%clk 0:00:00]}  Ne5 {[%clk 0:00:00]} 52. Ndc3 {[%clk 0:00:00]}  g4 {[%clk 0:00:00]} 53. hxg4 {[%clk 0:00:00]}  Bxg4+ {[%clk 0:00:00]} 54. Ke1 {[%clk 0:00:00]}  e3 {[%clk 0:00:00]} 55. fxe3 {[%clk 0:00:00]}  fxe3 {[%clk 0:00:00]} 56. Ne4+ {[%clk 0:00:00]}  Ke7 {[%clk 0:00:00]} 57. Rxd4 {[%clk 0:00:00]}  cxd4 {[%clk 0:00:00]} 58. Nec5 {[%clk 0:00:00]}  Kd6 {[%clk 0:00:00]} 59. Ne4+ {[%clk 0:00:00]}  Ke7 {[%clk 0:00:00]} 60. Nac5 {[%clk 0:00:00]}  d3 {[%clk 0:00:00]} 61. Nxd3 {[%clk 0:00:00]}  Nxd3+ {[%clk 0:00:00]} 62. Kf1 {[%clk 0:00:00]}  e2+ {[%clk 0:00:00]} 63. Kg1 {[%clk 0:00:00]}  e1=Q+ {[%clk 0:00:00]} 64. Kh2 {[%clk 0:00:00]}  Qxe4 {[%clk 0:00:00]} 65. Kg3 {[%clk 0:00:00]}  Qe3+ {[%clk 0:00:00]} 66. Kh4 {[%clk 0:00:00]}  Nc1 {[%clk 0:00:00]} 67. c5 {[%clk 0:00:00]}  Be2 {[%clk 0:00:00]} 68. b4 {[%clk 0:00:00]}  Bb5 {[%clk 0:00:00]} 69. a4 {[%clk 0:00:00]}  Qd4+ {[%clk 0:00:00]} 70. g4 {[%clk 0:00:00]}  Qxb4 {[%clk 0:00:00]} 71. axb5 {[%clk 0:00:00]}  Qxb5 {[%clk 0:00:00]} 72. Kh5 {[%clk 0:00:00]}  Qxc5+ {[%clk 0:00:00]} 73. g5 {[%clk 0:00:00]}  Qf5 {[%clk 0:00:00]} 74. Kh6 {[%clk 0:00:00]}  Kf7 {[%clk 0:00:00]} 75. g6+ {[%clk 0:00:00]}  Qxg6# {[%clk 0:00:00]} 0-1


[Site "https://www.chess.com"]

[Event "Titled Tuesday Blitz August 16 Early 2022"]
[White "Vachylia, Andrii"]
[Black "Lobanov, Sergei"]
[WhiteFideId "14137224"]
[BlackFideId "24183750"]
[WhiteElo "2318"]
[BlackElo "2524"]
[Result "1-0"]
[Round "03"]
[TimeControl "180+1"]
[Date "2022.08.16"]
[WhiteClock "0:00:15"]
[BlackClock "0:00:03"]

1. e4 {[%clk 0:03:00]}  e5 {[%clk 0:03:00]} 2. Nf3 {[%clk 0:03:00]}  Nc6 {[%clk 0:03:00]} 3. d4 {[%clk 0:02:59]}  exd4 {[%clk 0:02:59]} 4. Bc4 {[%clk 0:02:59]}  Nf6 {[%clk 0:02:59]} 5. e5 {[%clk 0:03:00]}  Ne4 {[%clk 0:02:56]} 6. Qe2 {[%clk 0:02:56]}  Nc5 {[%clk 0:02:51]} 7. c3 {[%clk 0:02:57]}  dxc3 {[%clk 0:02:47]} 8. Nxc3 {[%clk 0:02:57]}  Be7 {[%clk 0:02:47]} 9. O-O {[%clk 0:02:57]}  O-O {[%clk 0:02:46]} 10. Bf4 {[%clk 0:02:56]}  d6 {[%clk 0:02:45]} 11. Rad1 {[%clk 0:02:55]}  Bg4 {[%clk 0:02:38]} 12. Nb5 {[%clk 0:02:47]}  Ne6 {[%clk 0:02:05]} 13. Bg3 {[%clk 0:02:40]}  a6 {[%clk 0:01:52]} 14. exd6 {[%clk 0:02:33]}  cxd6 {[%clk 0:01:51]} 15. Bxe6 {[%clk 0:02:13]}  Bxf3 {[%clk 0:01:51]} 16. gxf3 {[%clk 0:02:10]}  axb5 {[%clk 0:01:48]} 17. Bd5 {[%clk 0:02:09]}  Bf6 {[%clk 0:01:02]} 18. Qxb5 {[%clk 0:01:34]}  Nd4 {[%clk 0:00:54]} 19. Qxb7 {[%clk 0:01:27]}  Rb8 {[%clk 0:00:55]} 20. Qa6 {[%clk 0:01:25]}  Rb6 {[%clk 0:00:52]} 21. Qc4 {[%clk 0:01:07]}  Nf5 {[%clk 0:00:42]} 22. b4 {[%clk 0:01:06]}  h5 {[%clk 0:00:34]} 23. a4 {[%clk 0:01:02]}  h4 {[%clk 0:00:34]} 24. Bf4 {[%clk 0:01:02]}  Bg5 {[%clk 0:00:27]} 25. a5 {[%clk 0:00:58]}  Rb8 {[%clk 0:00:26]} 26. a6 {[%clk 0:00:57]}  Rc8 {[%clk 0:00:20]} 27. Qe4 {[%clk 0:00:51]}  Qf6 {[%clk 0:00:20]} 28. a7 {[%clk 0:00:39]}  h3 {[%clk 0:00:21]} 29. Kh1 {[%clk 0:00:37]}  Nh4 {[%clk 0:00:18]} 30. Bxg5 {[%clk 0:00:32]}  Qxg5 {[%clk 0:00:18]} 31. Rg1 {[%clk 0:00:31]}  Qf6 {[%clk 0:00:09]} 32. a8=Q {[%clk 0:00:28]}  Rxa8 {[%clk 0:00:09]} 33. Bxa8 {[%clk 0:00:29]}  g6 {[%clk 0:00:09]} 34. b5 {[%clk 0:00:21]}  Rc8 {[%clk 0:00:08]} 35. Bd5 {[%clk 0:00:20]}  Kg7 {[%clk 0:00:06]} 36. b6 {[%clk 0:00:20]}  Rb8 {[%clk 0:00:04]} 37. b7 {[%clk 0:00:20]}  Ng2 {[%clk 0:00:04]} 38. Ra1 {[%clk 0:00:17]}  Qb2 {[%clk 0:00:04]} 39. Ra8 {[%clk 0:00:15]}  Rxb7 {[%clk 0:00:03]} 40. Bxb7 {[%clk 0:00:16]}  Qxf2 {[%clk 0:00:03]} 41. Qe8 {[%clk 0:00:14]}  Kf6 {[%clk 0:00:03]} 42. Qh8+ {[%clk 0:00:14]}  Kg5 {[%clk 0:00:03]} 43. Qxh3 {[%clk 0:00:15]} 1-0


[Site "https://www.chess.com"]

[Event "Titled Tuesday Blitz August 16 Early 2022"]
[White "Vakhlamov, Igor L."]
[Black "Malyi, Viacheslav"]
[WhiteFideId "24126748"]
[BlackFideId "14123983"]
[WhiteElo "2401"]
[BlackElo "2190"]
[Result "1-0"]
[Round "03"]
[TimeControl "180+2"]
[Date "2022.08.18"]
[WhiteClock "0:00:00"]
[BlackClock "0:00:00"]

1. e4 {[%clk 0:00:00]}  e5 {[%clk 0:00:00]} 2. Nf3 {[%clk 0:00:00]}  Nc6 {[%clk 0:00:00]} 3. Nc3 {[%clk 0:00:00]}  Nf6 {[%clk 0:00:00]} 4. Bb5 {[%clk 0:00:00]}  Bb4 {[%clk 0:00:00]} 5. Nd5 {[%clk 0:00:00]}  Be7 {[%clk 0:00:00]} 6. Nxe7 {[%clk 0:00:00]}  Qxe7 {[%clk 0:00:00]} 7. O-O {[%clk 0:00:00]}  O-O {[%clk 0:00:00]} 8. Re1 {[%clk 0:00:00]}  d6 {[%clk 0:00:00]} 9. h3 {[%clk 0:00:00]}  a6 {[%clk 0:00:00]} 10. Bf1 {[%clk 0:00:00]}  Nd8 {[%clk 0:00:00]} 11. c3 {[%clk 0:00:00]}  c5 {[%clk 0:00:00]} 12. d4 {[%clk 0:00:00]}  Nc6 {[%clk 0:00:00]} 13. a4 {[%clk 0:00:00]}  h6 {[%clk 0:00:00]} 14. g3 {[%clk 0:00:00]}  Re8 {[%clk 0:00:00]} 15. Bg2 {[%clk 0:00:00]}  Bd7 {[%clk 0:00:00]} 16. d5 {[%clk 0:00:00]}  Nb8 {[%clk 0:00:00]} 17. b4 {[%clk 0:00:00]}  b6 {[%clk 0:00:00]} 18. a5 {[%clk 0:00:00]}  cxb4 {[%clk 0:00:00]} 19. cxb4 {[%clk 0:00:00]}  Bb5 {[%clk 0:00:00]} 20. axb6 {[%clk 0:00:00]}  Nbd7 {[%clk 0:00:00]} 21. Nh4 {[%clk 0:00:00]}  Nxb6 {[%clk 0:00:00]} 22. Nf5 {[%clk 0:00:00]}  Qd7 {[%clk 0:00:00]} 23. Qf3 {[%clk 0:00:00]}  Qd8 {[%clk 0:00:00]} 24. h4 {[%clk 0:00:00]}  Nc4 {[%clk 0:00:00]} 25. Bf1 {[%clk 0:00:00]}  Nb6 {[%clk 0:00:00]} 26. Be3 {[%clk 0:00:00]}  Nc4 {[%clk 0:00:00]} 27. Bc1 {[%clk 0:00:00]}  Nb6 {[%clk 0:00:00]} 28. Ra5 {[%clk 0:00:00]}  Nc4 {[%clk 0:00:00]} 29. Ra2 {[%clk 0:00:00]}  Nb6 {[%clk 0:00:00]} 30. Be3 {[%clk 0:00:00]}  Nc4 {[%clk 0:00:00]} 31. Bxc4 {[%clk 0:00:00]}  Bxc4 {[%clk 0:00:00]} 32. Rc2 {[%clk 0:00:00]}  Bd3 {[%clk 0:00:00]} 33. Bxh6 {[%clk 0:00:00]}  Bxc2 {[%clk 0:00:00]} 34. Bxg7 {[%clk 0:00:00]}  Bxe4 {[%clk 0:00:00]} 35. Rxe4 {[%clk 0:00:00]}  Nxe4 {[%clk 0:00:00]} 36. Qxe4 {[%clk 0:00:00]}  f6 {[%clk 0:00:00]} 37. Qg4 {[%clk 0:00:00]}  Kf7 {[%clk 0:00:00]} 38. Qh5+ {[%clk 0:00:00]}  Kg8 {[%clk 0:00:00]} 39. Qg6 {[%clk 0:00:00]}  Ra7 {[%clk 0:00:00]} 40. Nh6# {[%clk 0:00:00]} 1-0


[Site "https://www.chess.com"]

[Event "Titled Tuesday Blitz August 16 Early 2022"]
[White "Vovk, Orest"]
[Black "Jain, Naveen"]
[WhiteFideId "14113490"]
[BlackFideId "5003970"]
[WhiteElo "2203"]
[BlackElo "2036"]
[Result "1-0"]
[Round "03"]
[TimeControl "180+2"]
[Date "2022.08.18"]
[WhiteClock "0:00:00"]
[BlackClock "0:00:00"]

1. h4 {[%clk 0:00:00]}  d5 {[%clk 0:00:00]} 2. h5 {[%clk 0:00:00]}  e5 {[%clk 0:00:00]} 3. h6 {[%clk 0:00:00]}  Nxh6 {[%clk 0:00:00]} 4. d4 {[%clk 0:00:00]}  e4 {[%clk 0:00:00]} 5. Bxh6 {[%clk 0:00:00]}  gxh6 {[%clk 0:00:00]} 6. e3 {[%clk 0:00:00]}  Nc6 {[%clk 0:00:00]} 7. Ne2 {[%clk 0:00:00]}  Bd6 {[%clk 0:00:00]} 8. c4 {[%clk 0:00:00]}  Bd7 {[%clk 0:00:00]} 9. Nbc3 {[%clk 0:00:00]}  Nb4 {[%clk 0:00:00]} 10. Nc1 {[%clk 0:00:00]}  Qg5 {[%clk 0:00:00]} 11. Rh5 {[%clk 0:00:00]}  Nc2+ {[%clk 0:00:00]} 12. Kd2 {[%clk 0:00:00]}  Qg6 {[%clk 0:00:00]} 13. Kxc2 {[%clk 0:00:00]}  Bg4 {[%clk 0:00:00]} 14. Be2 {[%clk 0:00:00]}  Qxh5 {[%clk 0:00:00]} 15. Bxg4 {[%clk 0:00:00]}  Qg5 {[%clk 0:00:00]} 16. Nxd5 {[%clk 0:00:00]}  f5 {[%clk 0:00:00]} 17. Bh5+ {[%clk 0:00:00]}  Kd7 {[%clk 0:00:00]} 18. g3 {[%clk 0:00:00]}  c6 {[%clk 0:00:00]} 19. Nc3 {[%clk 0:00:00]}  Bb4 {[%clk 0:00:00]} 20. Nb3 {[%clk 0:00:00]}  Bxc3 {[%clk 0:00:00]} 21. Kxc3 {[%clk 0:00:00]}  Kc7 {[%clk 0:00:00]} 22. Qe2 {[%clk 0:00:00]}  Rhd8 {[%clk 0:00:00]} 23. c5 {[%clk 0:00:00]}  b6 {[%clk 0:00:00]} 24. a4 {[%clk 0:00:00]}  Rab8 {[%clk 0:00:00]} 25. Bf7 {[%clk 0:00:00]}  Qf6 {[%clk 0:00:00]} 26. Bc4 {[%clk 0:00:00]}  Rd7 {[%clk 0:00:00]} 27. Ba6 {[%clk 0:00:00]}  Rd5 {[%clk 0:00:00]} 28. Qc4 {[%clk 0:00:00]}  h5 {[%clk 0:00:00]} 29. Rh1 {[%clk 0:00:00]}  Qf7 {[%clk 0:00:00]} 30. Bb5 {[%clk 0:00:00]}  cxb5 {[%clk 0:00:00]} 31. cxb6+ {[%clk 0:00:00]}  Kxb6 {[%clk 0:00:00]} 32. a5+ {[%clk 0:00:00]}  Kb7 {[%clk 0:00:00]} 33. a6+ {[%clk 0:00:00]}  Kb6 {[%clk 0:00:00]} 34. Qb4 {[%clk 0:00:00]}  Rc8+ {[%clk 0:00:00]} 35. Kd2 {[%clk 0:00:00]}  h4 {[%clk 0:00:00]} 36. Qa5+ {[%clk 0:00:00]}  Kc6 {[%clk 0:00:00]} 37. Rxh4 {[%clk 0:00:00]}  Qc7 {[%clk 0:00:00]} 38. Rh6+ {[%clk 0:00:00]}  Rd6 {[%clk 0:00:00]} 39. Qc3+ {[%clk 0:00:00]} 1-0


[Site "https://www.chess.com"]

[Event "Titled Tuesday Blitz August 16 Early 2022"]
[White "Yeletsky, Ivan"]
[Black "Taboas Rodriguez, Daniel"]
[WhiteFideId "24180327"]
[BlackFideId "2208466"]
[WhiteElo "2293"]
[BlackElo "2429"]
[Result "0-1"]
[Round "03"]
[TimeControl "180+1"]
[Date "2022.08.16"]
[WhiteClock "0:00:04"]
[BlackClock "0:00:26"]

1. Nf3 {[%clk 0:03:00]}  Nf6 {[%clk 0:02:57]} 2. g3 {[%clk 0:03:01]}  b6 {[%clk 0:02:57]} 3. d3 {[%clk 0:02:59]}  Bb7 {[%clk 0:02:56]} 4. e4 {[%clk 0:02:59]}  g6 {[%clk 0:02:57]} 5. Bg2 {[%clk 0:02:57]}  Bg7 {[%clk 0:02:57]} 6. O-O {[%clk 0:02:58]}  O-O {[%clk 0:02:57]} 7. c4 {[%clk 0:02:52]}  c5 {[%clk 0:02:57]} 8. Nc3 {[%clk 0:02:52]}  Nc6 {[%clk 0:02:58]} 9. a3 {[%clk 0:02:50]}  Ne8 {[%clk 0:02:57]} 10. Bg5 {[%clk 0:02:48]}  Nc7 {[%clk 0:02:57]} 11. Rb1 {[%clk 0:02:47]}  Ne6 {[%clk 0:02:57]} 12. Bd2 {[%clk 0:02:46]}  Ned4 {[%clk 0:02:55]} 13. b4 {[%clk 0:02:44]}  d6 {[%clk 0:02:54]} 14. b5 {[%clk 0:02:34]}  Nxf3+ {[%clk 0:02:53]} 15. Bxf3 {[%clk 0:02:35]}  Nd4 {[%clk 0:02:54]} 16. Bg2 {[%clk 0:02:35]}  e6 {[%clk 0:02:49]} 17. a4 {[%clk 0:02:32]}  a5 {[%clk 0:02:37]} 18. Ne2 {[%clk 0:02:21]}  Qd7 {[%clk 0:02:33]} 19. Nxd4 {[%clk 0:02:17]}  Bxd4 {[%clk 0:02:34]} 20. Bh6 {[%clk 0:02:16]}  Rfe8 {[%clk 0:02:31]} 21. Qg4 {[%clk 0:02:07]}  f5 {[%clk 0:02:26]} 22. exf5 {[%clk 0:02:05]}  exf5 {[%clk 0:02:27]} 23. Qh3 {[%clk 0:02:05]}  Re2 {[%clk 0:02:22]} 24. Bf4 {[%clk 0:01:49]}  Rae8 {[%clk 0:02:21]} 25. Bxb7 {[%clk 0:01:42]}  Qxb7 {[%clk 0:02:21]} 26. Qg2 {[%clk 0:01:43]}  Qxg2+ {[%clk 0:02:09]} 27. Kxg2 {[%clk 0:01:43]}  R8e6 {[%clk 0:02:06]} 28. h4 {[%clk 0:01:31]}  Kf7 {[%clk 0:02:06]} 29. Bg5 {[%clk 0:01:18]}  Ra2 {[%clk 0:02:04]} 30. Bd8 {[%clk 0:01:16]}  d5 {[%clk 0:02:01]} 31. cxd5 {[%clk 0:01:13]}  Rd6 {[%clk 0:02:01]} 32. Bc7 {[%clk 0:01:11]}  Rxd5 {[%clk 0:02:01]} 33. Bxb6 {[%clk 0:01:11]}  Rxa4 {[%clk 0:02:01]} 34. Bc7 {[%clk 0:01:08]}  Be5 {[%clk 0:01:41]} 35. b6 {[%clk 0:01:08]}  Rb4 {[%clk 0:01:39]} 36. Rfe1 {[%clk 0:01:03]}  Bd6 {[%clk 0:01:20]} 37. Rbc1 {[%clk 0:00:39]}  Rxd3 {[%clk 0:01:11]} 38. Red1 {[%clk 0:00:34]}  Rxd1 {[%clk 0:01:02]} 39. Rxd1 {[%clk 0:00:35]}  Be7 {[%clk 0:01:02]} 40. Kf3 {[%clk 0:00:23]}  Ke6 {[%clk 0:01:00]} 41. Re1+ {[%clk 0:00:18]}  Kd7 {[%clk 0:01:00]} 42. Rd1+ {[%clk 0:00:18]}  Kc6 {[%clk 0:01:00]} 43. Re1 {[%clk 0:00:19]}  Re4 {[%clk 0:00:54]} 44. Rxe4 {[%clk 0:00:18]}  fxe4+ {[%clk 0:00:55]} 45. Kxe4 {[%clk 0:00:19]}  a4 {[%clk 0:00:55]} 46. Kd3 {[%clk 0:00:19]}  a3 {[%clk 0:00:51]} 47. Kc2 {[%clk 0:00:19]}  c4 {[%clk 0:00:50]} 48. Kb1 {[%clk 0:00:17]}  c3 {[%clk 0:00:49]} 49. Be5 {[%clk 0:00:14]}  Bb4 {[%clk 0:00:48]} 50. Bd4 {[%clk 0:00:13]}  h5 {[%clk 0:00:44]} 51. f3 {[%clk 0:00:13]}  Ba5 {[%clk 0:00:44]} 52. Ka2 {[%clk 0:00:11]}  c2 {[%clk 0:00:41]} 53. Be3 {[%clk 0:00:10]}  Bxb6 {[%clk 0:00:42]} 54. Bc1 {[%clk 0:00:10]}  Bc5 {[%clk 0:00:41]} 55. g4 {[%clk 0:00:09]}  Kd5 {[%clk 0:00:38]} 56. Kb3 {[%clk 0:00:09]}  Kd4 {[%clk 0:00:26]} 57. Kxc2 {[%clk 0:00:08]}  Kc4 {[%clk 0:00:27]} 58. Bg5 {[%clk 0:00:04]}  Bd4 {[%clk 0:00:26]} 0-1


[Site "https://www.chess.com"]

[Event "Titled Tuesday Blitz August 16 Early 2022"]
[White "Yuan, Qingyu"]
[Black "Al-Tarboush, Ward"]
[WhiteFideId "8609772"]
[BlackFideId "7601450"]
[WhiteElo "2359"]
[BlackElo "2234"]
[Result "1-0"]
[Round "03"]
[TimeControl "180+2"]
[Date "2022.08.18"]
[WhiteClock "0:00:00"]
[BlackClock "0:00:00"]

1. e4 {[%clk 0:00:00]}  e6 {[%clk 0:00:00]} 2. d4 {[%clk 0:00:00]}  d5 {[%clk 0:00:00]} 3. e5 {[%clk 0:00:00]}  c5 {[%clk 0:00:00]} 4. c3 {[%clk 0:00:00]}  Nc6 {[%clk 0:00:00]} 5. Nf3 {[%clk 0:00:00]}  Qb6 {[%clk 0:00:00]} 6. Bd3 {[%clk 0:00:00]}  cxd4 {[%clk 0:00:00]} 7. O-O {[%clk 0:00:00]}  Nge7 {[%clk 0:00:00]} 8. Re1 {[%clk 0:00:00]}  Bd7 {[%clk 0:00:00]} 9. h4 {[%clk 0:00:00]}  h6 {[%clk 0:00:00]} 10. h5 {[%clk 0:00:00]}  a6 {[%clk 0:00:00]} 11. Nbd2 {[%clk 0:00:00]}  dxc3 {[%clk 0:00:00]} 12. bxc3 {[%clk 0:00:00]}  Nf5 {[%clk 0:00:00]} 13. Rb1 {[%clk 0:00:00]}  Qa7 {[%clk 0:00:00]} 14. Nb3 {[%clk 0:00:00]}  Be7 {[%clk 0:00:00]} 15. Bxf5 {[%clk 0:00:00]}  exf5 {[%clk 0:00:00]} 16. Nfd4 {[%clk 0:00:00]}  O-O {[%clk 0:00:00]} 17. Qf3 {[%clk 0:00:00]}  Nxd4 {[%clk 0:00:00]} 18. Nxd4 {[%clk 0:00:00]}  Rac8 {[%clk 0:00:00]} 19. Bd2 {[%clk 0:00:00]}  Bc5 {[%clk 0:00:00]} 20. Nxf5 {[%clk 0:00:00]}  Bxf5 {[%clk 0:00:00]} 21. Qxf5 {[%clk 0:00:00]}  b5 {[%clk 0:00:00]} 22. Re2 {[%clk 0:00:00]}  Qe7 {[%clk 0:00:00]} 23. g3 {[%clk 0:00:00]}  Qe6 {[%clk 0:00:00]} 24. Qf3 {[%clk 0:00:00]}  Ba7 {[%clk 0:00:00]} 25. Kg2 {[%clk 0:00:00]}  Rc4 {[%clk 0:00:00]} 26. Rd1 {[%clk 0:00:00]}  Rd8 {[%clk 0:00:00]} 27. Bc1 {[%clk 0:00:00]}  Bc5 {[%clk 0:00:00]} 28. Bf4 {[%clk 0:00:00]}  Be7 {[%clk 0:00:00]} 29. Red2 {[%clk 0:00:00]}  Re4 {[%clk 0:00:00]} 30. Rd4 {[%clk 0:00:00]}  Rxd4 {[%clk 0:00:00]} 31. Rxd4 {[%clk 0:00:00]}  Bc5 {[%clk 0:00:00]} 32. Rd1 {[%clk 0:00:00]}  Ba7 {[%clk 0:00:00]} 33. Be3 {[%clk 0:00:00]}  Bb8 {[%clk 0:00:00]} 34. Bd4 {[%clk 0:00:00]} 1-0


[Site "https://www.chess.com"]